fUSD/lending_fUSD_20240121
["ID","MTS","AMOUNT","RATE_DAILY","PERIOD"]
[312357378,1705824665687,1560.95826842,5e-05,2]
[312357379,1705824665709,921.61075565,5e-05,2]
[312357380,1705824665731,1533.83645848,5e-05,2]
[312357384,1705825000553,156.88849165,5e-05,2]
[312357385,1705825002703,155.0,5e-05,2]
[312357386,1705825002745,154.27504987,5e-05,2]
[312357387,1705825002766,0.72495013,5e-05,2]
[312357388,1705825003371,375.27737506,5e-05,2]
[312357389,1705825003536,166.03786661,0.00015,2]
[312357390,1705825006914,155.0,5e-05,2]
[312357391,1705825015292,259.99699889,5e-05,2]
[312357392,1705825015828,241.01367091,5e-05,2]
[312357393,1705825018731,155.0,5e-05,2]
[312357394,1705825020676,161.22573928,5e-05,2]
[312357395,1705825022502,156.88849165,5e-05,2]
[312357396,1705825024921,158.123277,5e-05,2]
[312357397,1705825033275,170.71163047,5e-05,2]
[312357398,1705825033295,89.28536842,5e-05,2]
[312357399,1705825040496,156.88849165,5e-05,2]
[312357400,1705825044730,158.74411713,5e-05,2]
[312357401,1705825049281,259.99699889,5e-05,2]
[312357402,1705825058128,155.0,5e-05,2]
[312357403,1705825058536,156.88849165,5e-05,2]
[312357404,1705825067286,259.99699889,5e-05,2]
[312357405,1705825072123,155.0,5e-05,2]
[312357406,1705825078506,156.88849165,5e-05,2]
[312357407,1705825087277,259.99699889,5e-05,2]
[312357408,1705825092129,155.0,5e-05,2]
[312357409,1705825096510,36.31404283,5e-05,2]
[312357410,1705825096531,120.57444882,5e-05,2]
[312357411,1705825103321,259.99699889,5e-05,2]
[312357412,1705825112514,196.46069139,5e-05,2]
[312357413,1705825114132,274.30864778,5e-05,2]
[312357414,1705825121297,219.63690521,5e-05,2]
[312357415,1705825146042,159.98,0.00017162,2]
[312357416,1705825150683,500.0,0.00035854,30]
[312357417,1705825410772,8798.41,0.00035953,30]
[312357418,1705825457704,435.83,0.00019144,2]
[312357419,1705825501325,220.43453087,0.00019144,2]
[312357420,1705825502303,112.77777704,0.00019144,2]
[312357421,1705825502325,42.22222296,0.00019144,2]
[312357422,1705825506597,283.39303664,0.00019144,2]
[312357423,1705825516454,155.0,0.00019144,2]
[312357424,1705825519331,220.43453087,0.00019144,2]
[312357425,1705825520597,287.95188345,0.00019144,2]
[312357426,1705825534313,161.14501792,0.00019144,2]
[312357427,1705825539334,210.16497646,0.00019144,2]
[312357428,1705825561483,1778.0,0.00035955,120]
[312357430,1705825648044,159.98,0.00016597,2]
[312357445,1705825832762,-282.561689,0.00020367,2]
[312357446,1705825832772,-164.90047162,0.00020469,2]
[312357447,1705825832782,-315.55067723,0.0002047,2]
[312357448,1705825832797,-479.78547045,0.0002047,2]
[312357449,1705825832825,-1826.31970927,0.0002047,2]
[312357450,1705825832835,-364.29623215,0.00020471,2]
[312357451,1705825832844,-155.0,0.00020471,2]
[312357452,1705825832856,-179.13,0.00020808,10]
[312357453,1705825832866,-47.42005118,0.00020821,2]
[312357454,1705825832982,-471.62994882,0.00020821,2]
[312357455,1705825832991,-172.09,0.00020855,2]
[312357456,1705825833001,-77.34591559,0.00020898,2]
[312357457,1705825833252,-79.75347162,0.00020898,2]
[312357458,1705825833262,-277.71024251,0.00020998,2]
[312357459,1705825833274,-202.92975749,0.00020998,2]
[312357460,1705825833286,-609.96761514,0.00021,2]
[312357461,1705825833295,-1429.87422976,0.00021,2]
[312357462,1705825833307,-3375.74039394,0.00021,2]
[312357463,1705825833323,-373.90204875,0.00021,2]
[312357465,1705825833334,-1487.81601593,0.00021,2]
[312357471,1705825837752,-860.76382152,0.00021,2]
[312357472,1705825837809,-13244.4134901,0.00021,2]
[312357473,1705825837818,-714.84,0.00021017,2]
[312357474,1705825837827,-300.0,0.00021022,2]
[312357475,1705825837837,-150.0,0.00021022,2]
[312357476,1705825837846,-158.68,0.00021023,2]
[312357477,1705825837855,-150.99,0.00021023,2]
[312357478,1705825837863,-9999.99,0.00021023,2]
[312357479,1705825837872,-1637.03,0.00021023,2]
[312357480,1705825837881,-246.81737321,0.00021023,2]
[312357481,1705825837897,-253.17262679,0.00021023,2]
[312357482,1705825837907,-157.09938718,0.0002103,2]
[312357483,1705825837917,-3536.95795979,0.0002103,2]
[312357484,1705825837929,-611.45204021,0.0002103,2]
[312357485,1705825837938,-727.4,0.00021032,2]
[312357486,1705825837947,-6324.17,0.00021032,2]
[312357487,1705825837956,-150.99,0.00021032,2]
[312357488,1705825837965,-721.86,0.00021059,2]
[312357489,1705825837976,-709.99,0.0002111,2]
[312357490,1705825837986,-151.72,0.00021136,2]
[312357491,1705825837995,-157.09938718,0.00021162,2]
[312357492,1705825838004,-710.51,0.00021205,2]
[312357493,1705825838016,-157.09938718,0.00021294,2]
[312357494,1705825838026,-165.15,0.00021364,2]
[312357495,1705825838036,-737.33,0.00021375,2]
[312357496,1705825838047,-2377.29,0.00021375,2]
[312357497,1705825838057,-435.83,0.00021408,2]
[312357498,1705825838068,-9498.4,0.00021409,2]
[312357499,1705825838077,-151.72,0.00021411,2]
[312357500,1705825838088,-157.09938718,0.00021427,2]
[312357501,1705825838097,-167.92,0.0002149,2]
[312357502,1705825838107,-157.09938718,0.00021559,2]
[312357503,1705825838116,-671.81421461,0.00021624,2]
[312357504,1705825838125,-294.39,0.00021644,2]
[312357505,1705825838136,-151.72,0.00021687,2]
[312357506,1705825838146,-157.09938718,0.00021691,2]
[312357507,1705825838155,-519.36,0.00021807,2]
[312357508,1705825838166,-157.09938718,0.00021823,2]
[312357509,1705825838176,-1911.3202,0.00021863,2]
[312357510,1705825838186,-19139.62270905,0.00021866,2]
[312357511,1705825838195,-499.99,0.00021867,2]
[312357512,1705825838206,-3309.9,0.00021867,2]
[312357513,1705825838216,-261.23,0.000219,2]
[312357515,1705825838226,-157.09938718,0.00021955,2]
[312357516,1705825838235,-151.72,0.00021962,2]
[312357517,1705825838245,-250.0,0.00021998,2]
[312357518,1705825838254,-150.0,0.00021998,2]
[312357520,1705825838265,-150.0,0.00021998,2]
[312357521,1705825838275,-352.66,0.00021998,2]
[312357522,1705825838284,-157.09938718,0.00022087,2]
[312357523,1705825838295,-157.09938718,0.00022219,2]
[312357524,1705825838305,-151.72,0.00022237,2]
[312357525,1705825838314,-250.0,0.00022272,2]
[312357526,1705825838326,-157.09938718,0.00022351,2]
[312357527,1705825838335,-52390.557,0.00022445,2]
[312357528,1705825838345,-294.39,0.00022445,2]
[312357529,1705825838354,-519.05,0.00022465,2]
[312357530,1705825838364,-157.09938718,0.00022484,2]
[312357531,1705825838375,-204.0,0.00022539,2]
[312357532,1705825838385,-250.0,0.00022546,2]
[312357533,1705825838394,-150.77298008,0.00022546,2]
[312357534,1705825838404,-150.0,0.00022546,2]
[312357535,1705825838414,-3837.434,0.00022589,2]
[312357536,1705825838423,-157.0645,0.00022589,2]
[312357537,1705825838433,-2500.0,0.000226,2]
[312357538,1705825838443,-157.09938718,0.00022616,2]
[312357539,1705825838453,-1036.24085509,0.00022689,2]
[312357540,1705825838464,-10459.8876,0.00022689,2]
[312357541,1705825838473,-868.1743,0.00022689,2]
[312357542,1705825838483,-1041.52724477,0.00022698,2]
[312357543,1705825838492,-160.7048052,0.00022698,2]
[312357544,1705825838502,-211.59647234,0.00022698,2]
[312357545,1705825838512,-185.27130486,0.00022699,2]
[312357546,1705825838521,-2549.72248654,0.00022699,2]
[312357547,1705825838531,-532.62983902,0.00022699,2]
[312357548,1705825838540,-4919.62267017,0.00022699,2]
[312357549,1705825838550,-129437.71722018,0.000227,2]
[312357550,1705825838559,-1036.24085509,0.00022719,2]
[312357551,1705825838569,-157.09938718,0.00022748,2]
[312357552,1705825838578,-166.37385207,0.00022748,4]
[312357553,1705825838587,-1036.24085509,0.00022749,2]
[312357554,1705825838596,-1036.24085509,0.00022779,2]
[312357555,1705825838606,-2878.8357,0.00022789,2]
[312357556,1705825838615,-8334.5419,0.00022789,2]
[312357557,1705825838624,-27748.0909,0.00022789,2]
[312357558,1705825838633,-39797.5924,0.00022789,2]
[312357559,1705825838643,-216.8623,0.00022789,2]
[312357560,1705825838653,-1000.0,0.00022789,2]
[312357561,1705825838662,-800.0,0.00022796,2]
[312357562,1705825838671,-1036.24085509,0.0002281,2]
[312357563,1705825838680,-252.6254508,0.0002282,2]
[312357564,1705825838690,-1036.24085509,0.0002284,2]
[312357565,1705825838699,-420.0,0.00022866,2]
[312357566,1705825838710,-1036.24085509,0.0002287,2]
[312357567,1705825838719,-1415.79447529,0.00022878,2]
[312357568,1705825838730,-221.59689234,0.00022878,2]
[312357569,1705825838739,-451.04750901,0.00022878,2]
[312357570,1705825838748,-659.52412099,0.00022878,2]
[312357571,1705825838757,-618.4808,0.00022878,2]
[312357572,1705825838768,-5000.0,0.00022878,2]
[312357573,1705825838777,-1415.79447528,0.0002288,2]
[312357574,1705825838786,-157.09938718,0.0002288,2]
[312357575,1705825838796,-275.34609792,0.0002288,2]
[312357576,1705825838805,-180.40419582,0.0002288,2]
[312357577,1705825838815,-1415.79447528,0.00022882,2]
[312357578,1705825838824,-451.04750898,0.00022883,2]
[312357579,1705825838833,-1415.79447528,0.00022884,2]
[312357580,1705825838842,-1415.79447528,0.00022886,2]
[312357581,1705825838851,-1045.24138243,0.00022887,2]
[312357582,1705825838860,-205.12302615,0.00022887,2]
[312357583,1705825838869,-402.71135878,0.00022887,2]
[312357584,1705825838879,-303.33684255,0.00022887,2]
[312357585,1705825838888,-155.2441035,0.00022887,2]
[312357586,1705825838897,-544.97705291,0.00022887,2]
[312357587,1705825838907,-155.0,0.00022887,2]
[312357588,1705825838916,-230.58874034,0.00022887,2]
[312357589,1705825838925,-217.97798028,0.00022887,2]
[312357590,1705825838935,-155.19358976,0.00022887,2]
[312357591,1705825838944,-3327.03038204,0.00022887,2]
[312357592,1705825838954,-1334.28942079,0.00022887,2]
[312357593,1705825838964,-844.22464915,0.00022887,2]
[312357594,1705825838974,-155.24712883,0.00022887,2]
[312357595,1705825838985,-718.91873743,0.00022887,4]
[312357596,1705825838995,-155.20904196,0.00022887,2]
[312357597,1705825839005,-234.33508647,0.00022887,2]
[312357598,1705825839015,-195.68159882,0.00022887,2]
[312357599,1705825839025,-155.38611778,0.00022887,2]
[312357600,1705825839034,-155.21074396,0.00022887,2]
[312357601,1705825839043,-4245.70602795,0.00022887,2]
[312357602,1705825839054,-628.6804983,0.00022887,2]
[312357603,1705825839063,-222.82839874,0.00022887,2]
[312357604,1705825839072,-310.08362313,0.00022887,2]
[312357605,1705825839082,-245.78431902,0.00022887,2]
[312357606,1705825839091,-155.3442365,0.00022887,2]
[312357607,1705825839101,-263.32899145,0.00022887,2]
[312357608,1705825839111,-155.24172355,0.00022887,2]
[312357609,1705825839122,-155.0,0.00022887,2]
[312357610,1705825839133,-177.85048408,0.00022887,2]
[312357611,1705825839143,-155.0,0.00022887,2]
[312357612,1705825839154,-277.41924982,0.00022887,2]
[312357613,1705825839163,-255.62995083,0.00022887,2]
[312357614,1705825839173,-249.12782327,0.00022887,2]
[312357615,1705825839182,-155.85793574,0.00022887,2]
[312357616,1705825839191,-186.50937229,0.00022887,2]
[312357617,1705825839201,-195.25271847,0.00022887,2]
[312357618,1705825839210,-3855.4127161,0.00022888,2]
[312357619,1705825839219,-500.0,0.00022888,2]
[312357620,1705825839229,-1415.79447528,0.00022888,2]
[312357621,1705825839239,-451.04750898,0.00022888,2]
[312357622,1705825839248,-1415.79447528,0.0002289,2]
[312357623,1705825839258,-275.34609791,0.0002289,2]
[312357624,1705825839269,-1415.79447528,0.00022892,2]
[312357625,1705825839279,-451.04750898,0.00022893,2]
[312357626,1705825839288,-1415.79447528,0.00022894,2]
[312357627,1705825839298,-1415.79447528,0.00022896,2]
[312357628,1705825839307,-1000.0,0.00022898,2]
[312357629,1705825839318,-14303.468,0.00022898,2]
[312357630,1705825839328,-1415.79447528,0.00022898,2]
[312357631,1705825839337,-451.04750898,0.00022898,2]
[312357632,1705825839347,-157.86897861,0.000229,2]
[312357633,1705825839356,-1415.79447528,0.000229,2]
[312357634,1705825839366,-1036.24085509,0.000229,2]
[312357635,1705825839375,-275.34609791,0.000229,2]
[312357636,1705825839387,-180.40419582,0.000229,2]
[312357637,1705825839397,-564.25097444,0.00022968,2]
[312357638,1705825839406,-609.96637252,0.00022968,3]
[312357639,1705825839416,-564.25097444,0.0002297,2]
[312357640,1705825839426,-881.0,0.00022978,2]
[312357641,1705825839435,-1055.94914201,0.00022978,2]
[312357642,1705825839445,-1057229.43594012,0.00022978,2]
[312357643,1705825839455,-7166.33422623,0.00022978,2]
[312357644,1705825839465,-150.01,0.00022979,2]
[312357645,1705825839474,-3298.13430336,0.00022979,2]
[312357646,1705825839484,-401446.26359104,0.0002298,2]
[312357647,1705825839494,-155.0,0.0002298,2]
[312357648,1705825839504,-2000.0,0.0002298,2]
[312357649,1705825839514,-564.25097444,0.00022988,2]
[312357650,1705825839523,-278.01938655,0.00022997,2]
[312357651,1705825839533,-155.944763,0.00022997,2]
[312357652,1705825839543,-263.2279782,0.00022997,2]
[312357653,1705825839552,-150.0,0.00022997,2]
[312357654,1705825839562,-150.0,0.00022997,2]
[312357655,1705825839572,-150.0,0.00022997,2]
[312357656,1705825839582,-150.0,0.00022997,2]
[312357657,1705825839592,-3254454.60254922,0.00022997,3]
[312357658,1705825839605,-96985.47110504,0.00022997,3]
[312357659,1705825839615,-158.39619227,0.00022998,2]
[312357660,1705825839625,-6812.90774607,0.00022998,2]
[312357661,1705825839730,-628.5,0.00022998,2]
[312357662,1705825839757,-374.16160013,0.00022998,2]
[312357663,1705825839779,-20751.44426453,0.00022998,2]
[312357664,1705825840406,-205.29749463,0.0002288,4]
[312357665,1705825840416,-138.33630893,0.00022998,2]
[312357666,1705825840463,-2877.28291343,0.00022998,2]
[312357667,1705825840475,-656.91771677,0.00022998,2]
[312357668,1705825840486,-995.44553013,0.00022998,2]
[312357672,1705825842682,-2037.31092658,0.00022998,2]
[312357673,1705825842694,-1267.39406076,0.00022998,2]
[312357674,1705825842743,-463.85798199,0.00022998,2]
[312357675,1705825842757,-377838.98045338,0.00022998,2]
[312357676,1705825842768,-990.0,0.00022998,7]
[312357677,1705825842779,-167.45662953,0.00022998,7]
[312357678,1705825842788,-304.99503465,0.00022999,2]
[312357679,1705825842797,-150.0,0.00022999,2]
[312357680,1705825842806,-150.0,0.00022999,2]
[312357681,1705825842815,-150.0,0.00022999,2]
[312357682,1705825842824,-150.0,0.00022999,2]
[312357683,1705825842833,-150.0,0.00022999,2]
[312357684,1705825842842,-150.0,0.00022999,2]
[312357685,1705825842850,-150.0,0.00022999,2]
[312357686,1705825842860,-150.0,0.00022999,2]
[312357687,1705825842870,-160.8242659,0.00022999,2]
[312357688,1705825842879,-150.0,0.00022999,2]
[312357689,1705825842888,-154.84296842,0.00022999,2]
[312357690,1705825842898,-4731.14523428,0.00023,2]
[312357691,1705825842907,-1749249.37287969,0.00023,2]
[312357692,1705825842919,-33890.96915153,0.00023,2]
[312357693,1705825842929,-7771.4,0.00023,2]
[312357694,1705825842941,-4689.82107719,0.00023,2]
[312357695,1705825842952,-4084.26722997,0.00023,2]
[312357696,1705825842964,-1015.73782321,0.00023,2]
[312357697,1705825842976,-11808.45385105,0.00023,2]
[312357698,1705825842999,-709.17,0.00023,2]
[312357699,1705825843011,-9512.8586279,0.00023,2]
[312357700,1705825843024,-4972.19721283,0.00023,2]
[312357704,1705825843310,-1120.75474578,0.00023,2]
[312357705,1705825843323,-1590.32321476,0.00023,2]
[312357706,1705825843338,-275.16935946,0.00023,2]
[312357707,1705825843351,-388.39049616,0.00023,2]
[312357715,1705825845704,-150.01,0.00022979,2]
[312357716,1705825845713,-1880.99261675,0.00022979,2]
[312357717,1705825845725,-1417.14168661,0.00022979,2]
[312357718,1705825845734,-1164.41019324,0.00022997,2]
[312357719,1705825845745,-1450.97333332,0.00022997,2]
[312357720,1705825845755,-3147.52666668,0.00023,2]
[312357721,1705825845780,-21866.49999998,0.00023,2]
[312357722,1705825845792,-342.01478654,0.00023,2]
[312357723,1705825845818,-3717.25421335,0.00023,2]
[312357724,1705825845892,-3779.9999998,0.00023,2]
[312357725,1705825845936,-432.27653367,0.00023,2]
[312357726,1705825845947,-672.78207722,0.00023,2]
[312357727,1705825845959,-22620.97509184,0.00023,2]
[312357728,1705825845971,-35048.7527446,0.00023,2]
[312357729,1705825845995,-659.879398,0.00023,2]
[312357730,1705825846007,-319.290005,0.00023,2]
[312357731,1705825846019,-621.7494999,0.00023,2]
[312357732,1705825846053,-300.0,0.00023,2]
[312357733,1705825846065,-404.04653892,0.00023,2]
[312358084,1705825878171,1674.0,0.00035959,120]
[312358085,1705826011592,1698.369999,0.00035959,120]
[312358086,1705826154828,159.98,0.00017357,2]
[312358088,1705826400588,496.17255486,0.00035915,30]
[312358089,1705826793741,204.0,0.00019539,2]
[312358090,1705826813929,415.82,0.00019613,2]
[312358116,1705827031899,-733.04,0.00021189,2]
[312358117,1705827031908,-720.71,0.00021189,2]
[312358118,1705827031918,-274.21,0.00021189,2]
[312358119,1705827031954,-373.05308475,0.00021189,2]
[312358120,1705827032061,-79.49691525,0.00021189,2]
[312358121,1705827032071,-725.1,0.00021189,2]
[312358122,1705827032080,-158.61971648,0.00021388,2]
[312358123,1705827032090,-157.59,0.00021488,2]
[312358124,1705827032099,-507.63,0.00021493,2]
[312358125,1705827032108,-593.80333627,0.00021518,2]
[312358126,1705827032167,-21.67666373,0.00021518,2]
[312358127,1705827032176,-444.958374,0.00021546,2]
[312358128,1705827032188,-273.721626,0.00021546,2]
[312358129,1705827032197,-384.52,0.0002164,2]
[312358130,1705827032206,-150.0,0.00021643,2]
[312358131,1705827032215,-151.14,0.00021643,2]
[312358133,1705827032224,-265.1,0.00021644,2]
[312358135,1705827032233,-150.0,0.00021644,2]
[312358136,1705827032242,-158.61971647,0.0002169,2]
[312358137,1705827032251,-499.99,0.00021787,2]
[312358138,1705827032260,-204.0,0.00021787,5]
[312358139,1705827032269,-6238.47427343,0.000218,2]
[312358152,1705827037908,-3807.05788132,0.000218,2]
[312358155,1705827038016,-9094.0905543,0.000218,2]
[312358156,1705827038027,-1339.00513371,0.00021848,2]
[312358157,1705827038038,-415.82,0.00021877,2]
[312358158,1705827038048,-150.0,0.000219,2]
[312358159,1705827038058,-250.0,0.000219,2]
[312358160,1705827038068,-158.61971647,0.00021993,2]
[312358161,1705827038078,-158.61971647,0.00022295,2]
[312358162,1705827038087,-189.13871432,0.00022445,3]
[312358163,1705827038098,-265.1,0.00022445,2]
[312358164,1705827038108,-150.0,0.00022448,2]
[312358165,1705827038118,-710.23,0.00022578,2]
[312358166,1705827038127,-414.0092,0.00022589,2]
[312358167,1705827038138,-158.61971647,0.00022598,2]
[312358168,1705827038149,-66806.34180906,0.000227,2]
[312358169,1705827038158,-1138.0,0.00022769,2]
[312358170,1705827038169,-508.30277601,0.00022797,2]
[312358171,1705827038178,-22050.87770657,0.00022798,2]
[312358172,1705827038228,-544.38170658,0.00022798,2]
[312358173,1705827038241,-3946.44737005,0.00022798,2]
[312358174,1705827038287,-6846.07374374,0.00022798,2]
[312358373,1705827040471,-894.13310659,0.00022798,2]
[312358934,1705827046005,-6892.22023309,0.00022798,2]
[312358941,1705827046061,-475.00000003,0.00022798,2]
[312358959,1705827046222,-344.95124268,0.00022798,2]
[312359565,1705827069920,536.88253821,0.00019613,2]
[312359566,1705827077482,343.29746179,0.00019613,2]
[312359567,1705827077505,23.9260241,0.00019613,2]
[312359609,1705827216128,1390.81792295,0.00019025,2]
[312359610,1705827232128,85.25605295,0.00019025,2]
[312359611,1705827232152,841.95589569,0.00019025,2]
[312359612,1705827250125,658.04410431,0.00019025,2]
[312359613,1705827250148,114.63251955,0.00019025,2]
[312359615,1705827266134,772.67662386,0.00018454,2]
[312359616,1705827288137,402.56452103,0.00018454,2]
[312359617,1705827308171,210.12633556,0.00018454,2]
[312359618,1705827308195,192.43818547,0.00018454,2]
[312359619,1705827328198,402.56452103,0.000179,2]
[312359620,1705827346150,402.56452103,0.000179,2]
[312359623,1705827370137,402.56452103,0.000179,2]
[312359624,1705827386140,99.86825144,0.00017363,2]
[312359625,1705827386165,302.69626959,0.00017363,2]
[312359626,1705827408139,402.56452103,0.00017363,2]
[312359627,1705827426143,402.56452103,0.00017363,2]
[312359628,1705827446157,392.17468835,0.00016842,2]
[312359629,1705827446181,10.38983268,0.00016842,2]
[312359630,1705827462157,240.30243005,0.00016842,2]
[312359631,1705827945681,110.29758117,0.00016842,2]
[312359632,1705827945704,520.9698439,0.00016842,2]
[312359633,1705827945728,520.9698439,0.00016842,2]
[312359634,1705827945752,520.9698439,0.00016842,2]
[312359635,1705827945775,520.9698439,0.00016842,2]
[312359636,1705827945797,479.7083317,0.00016842,2]
[312359637,1705827945818,2000.0,0.00016842,2]
[312359638,1705827945839,2000.0,0.00016842,2]
[312359639,1705827945860,2000.0,0.00016842,2]
[312359640,1705827945880,2000.0,0.00016842,2]
[312359641,1705827945901,2000.0,0.00016842,2]
[312359642,1705827945922,1784.3308478,0.00016842,2]
[312359643,1705827963685,215.6691522,0.00016842,2]
[312359644,1705827963712,2000.0,0.00016842,2]
[312359645,1705827963736,7423.14160531,0.00016842,2]
[312359646,1705827981759,8032.34229793,0.00016842,2]
[312359647,1705827997694,4184.85033722,0.00016842,2]
[312359648,1705828013704,4184.85033722,0.00016842,2]
[312359649,1705828031700,4184.85033722,0.00016842,2]
[312359650,1705828049708,4184.85033722,0.00016842,2]
[312359651,1705828071703,4184.85033722,0.00016842,2]
[312359652,1705828087697,4184.85033722,0.00016842,2]
[312359657,1705828105997,3245.88592721,0.00016842,2]
[312359658,1705828107707,4184.85033722,0.00016842,2]
[312359668,1705828222072,-1050.97405055,0.00019569,2]
[312359669,1705828222095,-184.04153026,0.0001957,2]
[312359670,1705828222119,-264.98441919,0.0001967,2]
[312359688,1705828232068,-117.12558081,0.0001967,2]
[312359690,1705828232077,-204.0,0.00020035,2]
[312359693,1705828232087,-158.61971647,0.000209,2]
[312359695,1705828232096,-150.0,0.00020998,2]
[312359696,1705828232106,-150.0,0.00020998,2]
[312359697,1705828232116,-11940.75470272,0.00020999,2]
[312359698,1705828232132,-433.3649623,0.00020999,2]
[312359727,1705828238570,-6239.38255809,0.00020999,2]
[312359728,1705828238581,-3155.7597197,0.00021,2]
[312359729,1705828238593,-463.6,0.00021466,2]
[312359730,1705828238603,-507.61,0.00021489,2]
[312359731,1705828238613,-162.19,0.00021579,2]
[312359732,1705828238624,-492.39,0.00021587,2]
[312359733,1705828238635,-159.06,0.00021644,2]
[312359734,1705828238648,-19139.62270905,0.000218,2]
[312359735,1705828238658,-499.99,0.000218,2]
[312359736,1705828238667,-250.0,0.000219,2]
[312359737,1705828238677,-786.78,0.000219,2]
[312359738,1705828238687,-250.0,0.00021918,2]
[312359739,1705828238698,-382.11,0.00021934,2]
[312359740,1705828238707,-635.54591192,0.00022385,3]
[312359741,1705828238718,-204.0,0.00022385,5]
[312359742,1705828238727,-159.06,0.00022445,2]
[312359743,1705828238736,-57088.0872,0.00022598,2]
[312359744,1705828238745,-251.305,0.00022598,2]
[312359745,1705828238754,-2026.5976,0.00022598,2]
[312359746,1705828238765,-4184.85033722,0.00022696,2]
[312359747,1705828238774,-226.89357572,0.00022696,2]
[312359748,1705828238790,-867.58082055,0.00022697,2]
[312359749,1705828238800,-99835.46022674,0.00022698,2]
[312359750,1705828238844,-4249.3634009,0.00022698,2]
[312359751,1705828238855,-2361.63006398,0.00022698,2]
[312359752,1705828238868,-858.36436816,0.00022698,2]
[312360018,1705828241348,-1285.96270054,0.00022698,2]
[312360207,1705828243167,-5609.01983555,0.00022698,2]
[312360467,1705828246221,-2645.57653317,0.00022698,2]
[312360468,1705828246233,-106841.65737096,0.00022698,2]
[312360469,1705828246242,-8717.274,0.00022698,2]
[312360470,1705828246252,-150.0,0.00022727,2]
[312360471,1705828246262,-94994.17779067,0.00022798,2]
[312360472,1705828246271,-500.0,0.00022798,2]
[312360473,1705828246282,-747.89331272,0.00022799,2]
[312360474,1705828246291,-92763.3448,0.00022799,2]
[312360475,1705828246300,-156.93296348,0.00022799,2]
[312360476,1705828246310,-1147.3973411,0.000228,2]
[312360477,1705828246320,-156.93296347,0.00022813,2]
[312360478,1705828246330,-500.0,0.00022816,2]
[312360479,1705828246340,-200.0,0.00022816,2]
[312360480,1705828246349,-800.0,0.00022816,2]
[312360481,1705828246359,-156.93296347,0.00022828,2]
[312360482,1705828246368,-156.93296347,0.00022842,2]
[312360483,1705828246378,-156.93296347,0.00022857,2]
[312360484,1705828246387,-156.93296347,0.00022871,2]
[312360485,1705828246397,-270.34902389,0.00022879,2]
[312360486,1705828246407,-156.93296347,0.00022886,2]
[312360487,1705828246416,-284.46902432,0.00022897,2]
[312360488,1705828246426,-151.0121,0.00022897,3]
[312360489,1705828246435,-151.0121,0.00022897,3]
[312360490,1705828246444,-151.0121,0.00022897,3]
[312360491,1705828246454,-151.0121,0.00022897,3]
[312360492,1705828246463,-151.0121,0.00022897,3]
[312360493,1705828246472,-151.0121,0.00022897,3]
[312360494,1705828246482,-151.0121,0.00022897,3]
[312360495,1705828246491,-151.0121,0.00022897,3]
[312360496,1705828246500,-151.0121,0.00022897,3]
[312360497,1705828246510,-151.0121,0.00022897,3]
[312360498,1705828246519,-151.0121,0.00022897,3]
[312360499,1705828246529,-151.0121,0.00022897,3]
[312360500,1705828246538,-151.0121,0.00022897,3]
[312360501,1705828246547,-151.0121,0.00022897,3]
[312360502,1705828246557,-151.0121,0.00022897,3]
[312360503,1705828246566,-151.0121,0.00022897,3]
[312360504,1705828246576,-151.0121,0.00022897,3]
[312360505,1705828246585,-151.0121,0.00022897,3]
[312360506,1705828246594,-151.0121,0.00022897,3]
[312360507,1705828246603,-151.0121,0.00022897,3]
[312360508,1705828246613,-151.0121,0.00022897,3]
[312360509,1705828246622,-151.0121,0.00022897,3]
[312360510,1705828246632,-151.0121,0.00022897,3]
[312360511,1705828246641,-151.0121,0.00022897,3]
[312360512,1705828246651,-151.0121,0.00022897,3]